[Event "January 2 Late 2024"]
[Site "https://www.chess.com"]
[Date "2024.01.02"]
[Round "1"]
[White "Dmitriev, Sergey"]
[Black "Baches Garcia, Guillermo"]
[Result "0-1"]
[Board "238"]
[TimeControl "180+1"]
[WhiteFideId "14101785"]
[BlackFideId "2209764"]
[WhiteElo "1987"]
[BlackElo "2522"]
[WhiteTeam "UKR"]
[BlackTeam "ESP"]
[WhiteClock "0:00:19"]
[BlackClock "0:00:26"]

1. e4 {[%clk 0:02:58]}  c5 {[%clk 0:02:58]} 2. Nf3 {[%clk 0:02:57]}  d6 {[%clk 0:02:59]} 3. c3 {[%clk 0:02:56]}  Nf6 {[%clk 0:02:59]} 4. Qc2 {[%clk 0:02:53]}  Qc7 {[%clk 0:02:59]} 5. Bb5+ {[%clk 0:02:51]}  Nbd7 {[%clk 0:02:57]} 6. O-O {[%clk 0:02:50]}  g6 {[%clk 0:02:55]} 7. d4 {[%clk 0:02:44]}  cxd4 {[%clk 0:02:51]} 8. Nxd4 {[%clk 0:02:43]}  Bg7 {[%clk 0:02:49]} 9. Bd3 {[%clk 0:02:39]}  O-O {[%clk 0:02:48]} 10. Bg5 {[%clk 0:02:34]}  Nc5 {[%clk 0:02:41]} 11. Re1 {[%clk 0:02:25]}  Nxd3 {[%clk 0:02:34]} 12. Qxd3 {[%clk 0:02:25]}  a6 {[%clk 0:02:33]} 13. Nd2 {[%clk 0:02:24]}  b6 {[%clk 0:02:28]} 14. Qe2 {[%clk 0:02:21]}  Bb7 {[%clk 0:02:27]} 15. f3 {[%clk 0:02:20]}  Rac8 {[%clk 0:02:22]} 16. Rac1 {[%clk 0:02:17]}  e6 {[%clk 0:02:18]} 17. Kh1 {[%clk 0:02:14]}  Nd7 {[%clk 0:02:17]} 18. h3 {[%clk 0:02:05]}  Rfe8 {[%clk 0:02:17]} 19. Qf2 {[%clk 0:02:03]}  Ne5 {[%clk 0:02:15]} 20. Qe2 {[%clk 0:01:58]}  b5 {[%clk 0:02:13]} 21. f4 {[%clk 0:01:53]}  Nc4 {[%clk 0:02:13]} 22. Nxc4 {[%clk 0:01:53]}  Qxc4 {[%clk 0:02:13]} 23. Qxc4 {[%clk 0:01:52]}  Rxc4 {[%clk 0:02:13]} 24. e5 {[%clk 0:01:44]}  dxe5 {[%clk 0:02:06]} 25. fxe5 {[%clk 0:01:43]}  b4 {[%clk 0:02:02]} 26. Nb3 {[%clk 0:01:39]}  bxc3 {[%clk 0:01:55]} 27. Na5 {[%clk 0:01:36]}  Rc7 {[%clk 0:01:44]} 28. Nxb7 {[%clk 0:01:35]}  Rxb7 {[%clk 0:01:44]} 29. bxc3 {[%clk 0:01:34]}  Rc8 {[%clk 0:01:40]} 30. Bf6 {[%clk 0:01:31]}  Bh6 {[%clk 0:01:32]} 31. Rc2 {[%clk 0:01:29]}  Rbc7 {[%clk 0:01:30]} 32. g4 {[%clk 0:01:24]}  Bg7 {[%clk 0:01:24]} 33. Re3 {[%clk 0:01:15]}  Rc4 {[%clk 0:01:22]} 34. g5 {[%clk 0:01:10]}  h6 {[%clk 0:01:18]} 35. gxh6 {[%clk 0:01:02]}  Bxh6 {[%clk 0:01:17]} 36. Rd3 {[%clk 0:01:03]}  Re4 {[%clk 0:01:05]} 37. Kg2 {[%clk 0:00:57]}  Rec4 {[%clk 0:00:57]} 38. Kf3 {[%clk 0:00:54]}  Bf8 {[%clk 0:00:56]} 39. h4 {[%clk 0:00:49]}  Bb4 {[%clk 0:00:48]} 40. h5 {[%clk 0:00:44]}  Rxc3 {[%clk 0:00:42]} 41. Rcxc3 {[%clk 0:00:40]}  Rxc3 {[%clk 0:00:42]} 42. Rxc3 {[%clk 0:00:39]}  Bxc3 {[%clk 0:00:42]} 43. hxg6 {[%clk 0:00:39]}  fxg6 {[%clk 0:00:43]} 44. Ke4 {[%clk 0:00:38]}  Kf7 {[%clk 0:00:42]} 45. Kd3 {[%clk 0:00:38]}  Bb2 {[%clk 0:00:36]} 46. Kc4 {[%clk 0:00:38]}  g5 {[%clk 0:00:35]} 47. Kd3 {[%clk 0:00:31]}  Kg6 {[%clk 0:00:32]} 48. Ke4 {[%clk 0:00:30]}  Bc1 {[%clk 0:00:30]} 49. Kf3 {[%clk 0:00:30]}  Kf5 {[%clk 0:00:30]} 50. a4 {[%clk 0:00:28]}  Bf4 {[%clk 0:00:30]} 51. Bd8 {[%clk 0:00:23]}  Bxe5 {[%clk 0:00:30]} 52. Ke3 {[%clk 0:00:23]}  g4 {[%clk 0:00:30]} 53. Kf2 {[%clk 0:00:23]}  g3+ {[%clk 0:00:29]} 54. Kg2 {[%clk 0:00:23]}  Kg4 {[%clk 0:00:29]} 55. Bb6 {[%clk 0:00:20]}  Bf4 {[%clk 0:00:28]} 56. Kf1 {[%clk 0:00:20]}  Kf3 {[%clk 0:00:28]} 57. Kg1 {[%clk 0:00:20]}  Be3+ {[%clk 0:00:26]} 58. Bxe3 {[%clk 0:00:20]}  Kxe3 {[%clk 0:00:26]} 59. Kg2 {[%clk 0:00:21]}  Kf4 {[%clk 0:00:27]} 60. Kg1 {[%clk 0:00:21]}  Kf3 {[%clk 0:00:27]} 61. a5 {[%clk 0:00:20]}  g2 {[%clk 0:00:26]} 62. Kh2 {[%clk 0:00:20]}  Kf2 {[%clk 0:00:27]} 63. Kh3 {[%clk 0:00:19]}  g1=Q {[%clk 0:00:26]} 0-1

[Event "January 2 Late 2024"]
[Site "https://www.chess.com"]
[Date "2024.01.02"]
[Round "1"]
[White "Ljukin, Sergei"]
[Black "Smirnov, Timofey"]
[Result "1-0"]
[Board "239"]
[TimeControl "180+1"]
[WhiteFideId "14102200"]
[BlackFideId "24176427"]
[WhiteElo "2522"]
[BlackElo "1987"]
[WhiteTeam "UKR"]
[BlackTeam "RUS"]
[WhiteClock "0:00:48"]
[BlackClock "0:00:09"]

1. e4 {[%clk 0:02:58]}  e5 {[%clk 0:02:59]} 2. Nf3 {[%clk 0:02:58]}  Nf6 {[%clk 0:02:58]} 3. Nxe5 {[%clk 0:02:57]}  d6 {[%clk 0:02:58]} 4. Nf3 {[%clk 0:02:58]}  Nxe4 {[%clk 0:02:59]} 5. d3 {[%clk 0:02:58]}  Nf6 {[%clk 0:02:59]} 6. d4 {[%clk 0:02:58]}  d5 {[%clk 0:02:59]} 7. c4 {[%clk 0:02:58]}  dxc4 {[%clk 0:02:52]} 8. Bxc4 {[%clk 0:02:57]}  Bd6 {[%clk 0:02:52]} 9. O-O {[%clk 0:02:56]}  O-O {[%clk 0:02:52]} 10. Nc3 {[%clk 0:02:57]}  Bg4 {[%clk 0:02:49]} 11. h3 {[%clk 0:02:55]}  Bh5 {[%clk 0:02:49]} 12. g4 {[%clk 0:02:55]}  Bg6 {[%clk 0:02:49]} 13. Ne5 {[%clk 0:02:56]}  Nbd7 {[%clk 0:02:26]} 14. f4 {[%clk 0:02:55]}  Ne4 {[%clk 0:01:41]} 15. f5 {[%clk 0:02:48]}  Qh4 {[%clk 0:01:39]} 16. Nxe4 {[%clk 0:02:38]}  Bxe5 {[%clk 0:01:22]} 17. dxe5 {[%clk 0:02:07]}  Nxe5 {[%clk 0:01:22]} 18. Be2 {[%clk 0:01:59]}  Rad8 {[%clk 0:00:55]} 19. Qb3 {[%clk 0:01:57]}  Bxf5 {[%clk 0:00:32]} 20. Bg5 {[%clk 0:00:57]}  Nf3+ {[%clk 0:00:10]} 21. Qxf3 {[%clk 0:00:50]}  Bxe4 {[%clk 0:00:09]} 22. Bxh4 {[%clk 0:00:50]}  Bxf3 {[%clk 0:00:09]} 23. Bxf3 {[%clk 0:00:48]} 1-0

[Event "January 2 Late 2024"]
[Site "https://www.chess.com"]
[Date "2024.01.02"]
[Round "2"]
[White "Nihal Sarin"]
[Black "Fantinel, Thibault"]
[Result "1-0"]
[Board "2"]
[TimeControl "180+1"]
[WhiteFideId "25092340"]
[BlackFideId "663395"]
[WhiteElo "3209"]
[BlackElo "2675"]
[WhiteTeam "IND"]
[BlackTeam "FRA"]
[WhiteClock "0:00:52"]
[BlackClock "0:00:00"]

1. e4 {[%clk 0:02:53]}  c5 {[%clk 0:02:59]} 2. Nf3 {[%clk 0:02:53]}  e6 {[%clk 0:03:00]} 3. d4 {[%clk 0:02:51]}  cxd4 {[%clk 0:03:01]} 4. Nxd4 {[%clk 0:02:52]}  Nc6 {[%clk 0:03:01]} 5. Nc3 {[%clk 0:02:52]}  Qc7 {[%clk 0:03:01]} 6. Be3 {[%clk 0:02:49]}  a6 {[%clk 0:03:01]} 7. g4 {[%clk 0:02:45]}  b5 {[%clk 0:02:55]} 8. Nxc6 {[%clk 0:02:40]}  Qxc6 {[%clk 0:02:56]} 9. Rg1 {[%clk 0:02:40]}  Bb7 {[%clk 0:02:54]} 10. Bg2 {[%clk 0:02:40]}  Qc7 {[%clk 0:02:39]} 11. Qd4 {[%clk 0:02:33]}  Ne7 {[%clk 0:02:34]} 12. O-O-O {[%clk 0:02:26]}  Nc6 {[%clk 0:02:30]} 13. Qd2 {[%clk 0:02:26]}  Ne5 {[%clk 0:02:22]} 14. Bf4 {[%clk 0:02:25]}  d6 {[%clk 0:02:18]} 15. Kb1 {[%clk 0:02:21]}  Be7 {[%clk 0:02:16]} 16. g5 {[%clk 0:02:18]}  Rc8 {[%clk 0:02:12]} 17. h4 {[%clk 0:02:17]}  O-O {[%clk 0:01:27]} 18. Rge1 {[%clk 0:02:05]}  Rfd8 {[%clk 0:01:22]} 19. h5 {[%clk 0:02:05]}  Nc4 {[%clk 0:01:11]} 20. Qd3 {[%clk 0:02:05]}  Qa5 {[%clk 0:01:07]} 21. g6 {[%clk 0:01:53]}  Nxb2 {[%clk 0:00:53]} 22. gxf7+ {[%clk 0:01:51]}  Kf8 {[%clk 0:00:49]} 23. Kxb2 {[%clk 0:01:47]}  Qb4+ {[%clk 0:00:49]} 24. Kc1 {[%clk 0:01:24]}  Rxc3 {[%clk 0:00:46]} 25. Qe2 {[%clk 0:01:21]}  d5 {[%clk 0:00:31]} 26. Be5 {[%clk 0:01:04]}  dxe4 {[%clk 0:00:11]} 27. Rxd8+ {[%clk 0:01:00]}  Bxd8 {[%clk 0:00:12]} 28. Qd2 {[%clk 0:00:55]}  Bf6 {[%clk 0:00:04]} 29. Bd6+ {[%clk 0:00:52]}  Qxd6 {[%clk 0:00:02]} 30. Qxd6+ {[%clk 0:00:52]}  Kxf7 {[%clk 0:00:00]} 31. Qd7+ {[%clk 0:00:52]} 1-0

[Event "January 2 Late 2024"]
[Site "https://www.chess.com"]
[Date "2024.01.02"]
[Round "2"]
[White "Nepomniachtchi, Ian"]
[Black "Banzea, Alexandru-Bogdan"]
[Result "1-0"]
[Board "6"]
[TimeControl "180+1"]
[WhiteFideId "4168119"]
[BlackFideId "1232622"]
[WhiteElo "3133"]
[BlackElo "2665"]
[WhiteTeam "RUS"]
[BlackTeam "ROU"]
[WhiteClock "0:02:03"]
[BlackClock "0:00:05"]

1. e4 {[%clk 0:03:00]}  c6 {[%clk 0:02:59]} 2. d4 {[%clk 0:02:58]}  d5 {[%clk 0:03:00]} 3. Nc3 {[%clk 0:02:58]}  dxe4 {[%clk 0:03:01]} 4. Nxe4 {[%clk 0:02:59]}  Nf6 {[%clk 0:03:02]} 5. Nxf6+ {[%clk 0:02:59]}  exf6 {[%clk 0:03:02]} 6. Be3 {[%clk 0:02:59]}  Bd6 {[%clk 0:03:02]} 7. Bd3 {[%clk 0:02:59]}  O-O {[%clk 0:02:55]} 8. Ne2 {[%clk 0:02:59]}  Na6 {[%clk 0:02:55]} 9. a3 {[%clk 0:02:59]}  Nc7 {[%clk 0:02:55]} 10. c4 {[%clk 0:02:58]}  Re8 {[%clk 0:02:54]} 11. O-O {[%clk 0:02:58]}  Bg4 {[%clk 0:02:54]} 12. Re1 {[%clk 0:02:58]}  Ne6 {[%clk 0:02:34]} 13. Qc2 {[%clk 0:02:47]}  Bxe2 {[%clk 0:02:08]} 14. Bxh7+ {[%clk 0:02:34]}  Kh8 {[%clk 0:02:08]} 15. Rxe2 {[%clk 0:02:34]}  Nxd4 {[%clk 0:01:55]} 16. Bxd4 {[%clk 0:02:34]}  Rxe2 {[%clk 0:01:55]} 17. Qxe2 {[%clk 0:02:35]}  Kxh7 {[%clk 0:01:53]} 18. Rd1 {[%clk 0:02:35]}  Qc7 {[%clk 0:01:37]} 19. Bxf6 {[%clk 0:02:29]}  Bxh2+ {[%clk 0:01:15]} 20. Kh1 {[%clk 0:02:29]}  Bf4 {[%clk 0:00:33]} 21. Qh5+ {[%clk 0:02:20]}  Bh6 {[%clk 0:00:23]} 22. Qf5+ {[%clk 0:02:15]}  Kg8 {[%clk 0:00:18]} 23. Rd7 {[%clk 0:02:12]}  Qf4 {[%clk 0:00:12]} 24. Qxf4 {[%clk 0:02:12]}  Bxf4 {[%clk 0:00:13]} 25. Bc3 {[%clk 0:02:12]}  b5 {[%clk 0:00:13]} 26. g3 {[%clk 0:02:12]}  Bg5 {[%clk 0:00:10]} 27. c5 {[%clk 0:02:08]}  a6 {[%clk 0:00:06]} 28. Rc7 {[%clk 0:02:07]}  Rd8 {[%clk 0:00:05]} 29. Rxc6 {[%clk 0:02:07]}  Rd1+ {[%clk 0:00:06]} 30. Kg2 {[%clk 0:02:07]}  Bf6 {[%clk 0:00:06]} 31. Bxf6 {[%clk 0:02:06]}  gxf6 {[%clk 0:00:07]} 32. Rxf6 {[%clk 0:02:05]}  Rd2 {[%clk 0:00:07]} 33. b4 {[%clk 0:02:05]}  a5 {[%clk 0:00:08]} 34. Rb6 {[%clk 0:02:03]}  a4 {[%clk 0:00:06]} 35. Rxb5 {[%clk 0:02:03]}  Ra2 {[%clk 0:00:05]} 36. c6 {[%clk 0:02:03]} 1-0

[Event "January 2 Late 2024"]
[Site "https://www.chess.com"]
[Date "2024.01.02"]
[Round "2"]
[White "Annaberdiyev, Meylis"]
[Black "Aronian, Levon"]
[Result "1-0"]
[Board "7"]
[TimeControl "180+1"]
[WhiteFideId "14000563"]
[BlackFideId "13300474"]
[WhiteElo "2665"]
[BlackElo "3118"]
[WhiteTeam "TKM"]
[BlackTeam "USA"]
[WhiteClock "0:00:15"]
[BlackClock "0:00:10"]

1. e4 {[%clk 0:03:00]}  c5 {[%clk 0:02:59]} 2. Nc3 {[%clk 0:02:58]}  a6 {[%clk 0:02:59]} 3. f4 {[%clk 0:02:57]}  b5 {[%clk 0:02:58]} 4. g3 {[%clk 0:02:57]}  Bb7 {[%clk 0:02:58]} 5. Bg2 {[%clk 0:02:57]}  e6 {[%clk 0:02:56]} 6. d3 {[%clk 0:02:57]}  d5 {[%clk 0:02:56]} 7. e5 {[%clk 0:02:50]}  Ne7 {[%clk 0:02:40]} 8. Nf3 {[%clk 0:02:48]}  d4 {[%clk 0:02:33]} 9. Ne4 {[%clk 0:02:43]}  Bxe4 {[%clk 0:02:33]} 10. dxe4 {[%clk 0:02:43]}  Nec6 {[%clk 0:02:32]} 11. O-O {[%clk 0:02:27]}  Nd7 {[%clk 0:02:31]} 12. f5 {[%clk 0:02:18]}  Be7 {[%clk 0:02:12]} 13. Bf4 {[%clk 0:01:48]}  Qb6 {[%clk 0:02:03]} 14. a4 {[%clk 0:01:36]}  O-O-O {[%clk 0:01:53]} 15. axb5 {[%clk 0:01:35]}  axb5 {[%clk 0:01:53]} 16. Bh3 {[%clk 0:01:27]}  Nb4 {[%clk 0:01:47]} 17. c3 {[%clk 0:01:05]}  dxc3 {[%clk 0:01:45]} 18. bxc3 {[%clk 0:01:06]}  c4+ {[%clk 0:01:29]} 19. Kh1 {[%clk 0:01:00]}  Nd3 {[%clk 0:01:26]} 20. fxe6 {[%clk 0:00:52]}  fxe6 {[%clk 0:01:25]} 21. Nd4 {[%clk 0:00:52]}  N7c5 {[%clk 0:01:25]} 22. Qg4 {[%clk 0:00:39]}  g5 {[%clk 0:01:22]} 23. Nxe6 {[%clk 0:00:28]}  h5 {[%clk 0:01:16]} 24. Qf5 {[%clk 0:00:24]}  Kb8 {[%clk 0:00:57]} 25. Nxd8 {[%clk 0:00:20]}  Rxd8 {[%clk 0:00:52]} 26. Be3 {[%clk 0:00:19]}  Qc6 {[%clk 0:00:39]} 27. Bg2 {[%clk 0:00:16]}  Na4 {[%clk 0:00:23]} 28. Qh7 {[%clk 0:00:16]}  Bc5 {[%clk 0:00:19]} 29. Bxc5 {[%clk 0:00:16]}  Qxc5 {[%clk 0:00:19]} 30. e6 {[%clk 0:00:17]}  Re8 {[%clk 0:00:16]} 31. e5 {[%clk 0:00:16]}  Qb6 {[%clk 0:00:13]} 32. Rf7 {[%clk 0:00:16]}  Nac5 {[%clk 0:00:10]} 33. Ra8# {[%clk 0:00:15]} 1-0

[Event "January 2 Late 2024"]
[Site "https://www.chess.com"]
[Date "2024.01.02"]
[Round "2"]
[White "Araujo Sanchez, Josue"]
[Black "Mamedyarov, Shakhriyar"]
[Result "1-0"]
[Board "9"]
[TimeControl "180+1"]
[WhiteFideId "6416896"]
[BlackFideId "13401319"]
[WhiteElo "2663"]
[BlackElo "3093"]
[WhiteTeam "DOM"]
[BlackTeam "AZE"]
[WhiteClock "0:00:59"]
[BlackClock "0:00:30"]

1. d4 {[%clk 0:02:54]}  Nf6 {[%clk 0:02:59]} 2. Nf3 {[%clk 0:02:55]}  g6 {[%clk 0:02:59]} 3. g3 {[%clk 0:02:54]}  Bg7 {[%clk 0:03:00]} 4. Bg2 {[%clk 0:02:55]}  O-O {[%clk 0:03:00]} 5. O-O {[%clk 0:02:56]}  d6 {[%clk 0:03:01]} 6. c3 {[%clk 0:02:56]}  Nbd7 {[%clk 0:03:01]} 7. Bg5 {[%clk 0:02:56]}  h6 {[%clk 0:03:01]} 8. Bxf6 {[%clk 0:02:57]}  Bxf6 {[%clk 0:03:00]} 9. Nbd2 {[%clk 0:02:57]}  Bg7 {[%clk 0:03:01]} 10. e4 {[%clk 0:02:58]}  e5 {[%clk 0:03:01]} 11. Re1 {[%clk 0:02:59]}  a5 {[%clk 0:02:59]} 12. Rc1 {[%clk 0:02:59]}  a4 {[%clk 0:02:57]} 13. a3 {[%clk 0:02:58]}  Qe7 {[%clk 0:02:54]} 14. Nf1 {[%clk 0:02:57]}  c6 {[%clk 0:02:54]} 15. Ne3 {[%clk 0:02:57]}  b5 {[%clk 0:02:53]} 16. c4 {[%clk 0:02:52]}  bxc4 {[%clk 0:02:40]} 17. Nxc4 {[%clk 0:02:48]}  exd4 {[%clk 0:02:39]} 18. Nxd4 {[%clk 0:02:47]}  Ra6 {[%clk 0:02:21]} 19. Ne2 {[%clk 0:02:24]}  Rd8 {[%clk 0:01:54]} 20. Nxd6 {[%clk 0:02:13]}  Bxb2 {[%clk 0:01:48]} 21. Nxc8 {[%clk 0:02:13]}  Rxc8 {[%clk 0:01:48]} 22. Rb1 {[%clk 0:01:54]}  Bxa3 {[%clk 0:01:26]} 23. Rb7 {[%clk 0:01:50]}  Rd8 {[%clk 0:01:26]} 24. Bh3 {[%clk 0:01:49]}  Ne5 {[%clk 0:01:11]} 25. Rxe7 {[%clk 0:01:42]}  Rxd1 {[%clk 0:01:10]} 26. Re8+ {[%clk 0:01:42]}  Kg7 {[%clk 0:01:05]} 27. Rxd1 {[%clk 0:01:42]}  Bb2 {[%clk 0:01:05]} 28. Nc1 {[%clk 0:01:28]}  a3 {[%clk 0:01:05]} 29. Na2 {[%clk 0:01:28]}  Ra4 {[%clk 0:01:05]} 30. Bg2 {[%clk 0:01:26]}  Rc4 {[%clk 0:01:05]} 31. Ra8 {[%clk 0:01:22]}  Rc2 {[%clk 0:01:03]} 32. h3 {[%clk 0:01:22]}  c5 {[%clk 0:01:03]} 33. Bf1 {[%clk 0:01:20]}  h5 {[%clk 0:00:40]} 34. Ra7 {[%clk 0:01:19]}  h4 {[%clk 0:00:39]} 35. gxh4 {[%clk 0:01:11]}  Kh6 {[%clk 0:00:39]} 36. Kg2 {[%clk 0:01:09]}  c4 {[%clk 0:00:35]} 37. Nb4 {[%clk 0:01:03]}  Rc3 {[%clk 0:00:36]} 38. Nd5 {[%clk 0:01:04]}  Rc2 {[%clk 0:00:34]} 39. Ne3 {[%clk 0:01:04]}  Rc3 {[%clk 0:00:34]} 40. Ng4+ {[%clk 0:01:00]}  Kg7 {[%clk 0:00:30]} 41. Nxe5 {[%clk 0:00:59]} 1-0

[Event "January 2 Late 2024"]
[Site "https://www.chess.com"]
[Date "2024.01.02"]
[Round "2"]
[White "Spata, German"]
[Black "Pranav, V"]
[Result "0-1"]
[Board "13"]
[TimeControl "180+1"]
[WhiteFideId "113026"]
[BlackFideId "25060783"]
[WhiteElo "2654"]
[BlackElo "3037"]
[WhiteTeam "ARG"]
[BlackTeam "IND"]
[WhiteClock "0:00:00"]
[BlackClock "0:00:16"]

1. d4 {[%clk 0:02:57]}  Nf6 {[%clk 0:02:58]} 2. Bf4 {[%clk 0:02:57]}  c5 {[%clk 0:02:55]} 3. c3 {[%clk 0:02:56]}  b6 {[%clk 0:02:52]} 4. e3 {[%clk 0:02:55]}  Bb7 {[%clk 0:02:50]} 5. Nf3 {[%clk 0:02:55]}  e6 {[%clk 0:02:49]} 6. h3 {[%clk 0:02:54]}  Be7 {[%clk 0:02:49]} 7. Nbd2 {[%clk 0:02:52]}  O-O {[%clk 0:02:49]} 8. Bd3 {[%clk 0:02:52]}  d6 {[%clk 0:02:49]} 9. Bh2 {[%clk 0:02:50]}  Nbd7 {[%clk 0:02:50]} 10. O-O {[%clk 0:02:50]}  Re8 {[%clk 0:02:48]} 11. Qe2 {[%clk 0:02:49]}  Bf8 {[%clk 0:02:48]} 12. Ba6 {[%clk 0:02:49]}  Qc8 {[%clk 0:02:48]} 13. Bxb7 {[%clk 0:02:48]}  Qxb7 {[%clk 0:02:49]} 14. Rac1 {[%clk 0:02:47]}  Rac8 {[%clk 0:02:46]} 15. Rfd1 {[%clk 0:02:46]}  b5 {[%clk 0:02:43]} 16. dxc5 {[%clk 0:02:32]}  Nxc5 {[%clk 0:02:42]} 17. Nb3 {[%clk 0:02:32]}  Qb6 {[%clk 0:02:31]} 18. Nxc5 {[%clk 0:02:29]}  Rxc5 {[%clk 0:02:32]} 19. e4 {[%clk 0:02:25]}  e5 {[%clk 0:02:28]} 20. Nd2 {[%clk 0:02:14]}  a5 {[%clk 0:02:25]} 21. Nf1 {[%clk 0:02:05]}  Rc4 {[%clk 0:02:21]} 22. Nd2 {[%clk 0:02:01]}  Rc5 {[%clk 0:02:14]} 23. Bg3 {[%clk 0:02:02]}  h6 {[%clk 0:02:07]} 24. Bh4 {[%clk 0:02:01]}  g5 {[%clk 0:02:07]} 25. Bg3 {[%clk 0:02:02]}  Qc6 {[%clk 0:02:06]} 26. f3 {[%clk 0:01:59]}  Qb7 {[%clk 0:01:57]} 27. Nb3 {[%clk 0:01:55]}  Rcc8 {[%clk 0:01:55]} 28. Bf2 {[%clk 0:01:47]}  a4 {[%clk 0:01:55]} 29. Nd2 {[%clk 0:01:46]}  Rc6 {[%clk 0:01:52]} 30. a3 {[%clk 0:01:45]}  Nh5 {[%clk 0:01:46]} 31. Nf1 {[%clk 0:01:42]}  Nf4 {[%clk 0:01:46]} 32. Qe1 {[%clk 0:01:41]}  Ng6 {[%clk 0:01:24]} 33. Ne3 {[%clk 0:01:41]}  Ne7 {[%clk 0:01:24]} 34. Nd5 {[%clk 0:01:40]}  Nxd5 {[%clk 0:01:18]} 35. Rxd5 {[%clk 0:01:41]}  Rc4 {[%clk 0:01:17]} 36. h4 {[%clk 0:01:32]}  Re6 {[%clk 0:01:12]} 37. hxg5 {[%clk 0:01:32]}  hxg5 {[%clk 0:01:13]} 38. Be3 {[%clk 0:01:31]}  Rg6 {[%clk 0:01:12]} 39. Qd2 {[%clk 0:01:31]}  g4 {[%clk 0:01:11]} 40. Kf2 {[%clk 0:01:26]}  Qd7 {[%clk 0:00:50]} 41. Rh1 {[%clk 0:01:23]}  Bg7 {[%clk 0:00:21]} 42. Bh6 {[%clk 0:00:41]}  gxf3 {[%clk 0:00:15]} 43. gxf3 {[%clk 0:00:39]}  Bxh6 {[%clk 0:00:15]} 44. Rxh6 {[%clk 0:00:38]}  Qa7+ {[%clk 0:00:16]} 45. Kf1 {[%clk 0:00:05]}  Qg1+ {[%clk 0:00:15]} 46. Ke2 {[%clk 0:00:00]}  Rg2+ {[%clk 0:00:16]} 0-1

[Event "January 2 Late 2024"]
[Site "https://www.chess.com"]
[Date "2024.01.02"]
[Round "2"]
[White "Feuerstack, Aljoscha"]
[Black "Radjabov, Teimour"]
[Result "0-1"]
[Board "15"]
[TimeControl "180+1"]
[WhiteFideId "4681932"]
[BlackFideId "13400924"]
[WhiteElo "2649"]
[BlackElo "3032"]
[WhiteTeam "GER"]
[BlackTeam "AZE"]
[WhiteClock "0:00:00"]
[BlackClock "0:00:28"]

1. e4 {[%clk 0:03:00]}  e5 {[%clk 0:02:59]} 2. Bc4 {[%clk 0:03:00]}  Nc6 {[%clk 0:02:54]} 3. Nc3 {[%clk 0:03:00]}  Nf6 {[%clk 0:02:52]} 4. d3 {[%clk 0:03:00]}  Na5 {[%clk 0:02:47]} 5. Qf3 {[%clk 0:02:59]}  d6 {[%clk 0:02:43]} 6. Nge2 {[%clk 0:02:58]}  Be7 {[%clk 0:02:42]} 7. O-O {[%clk 0:02:55]}  O-O {[%clk 0:02:41]} 8. h3 {[%clk 0:02:54]}  Nxc4 {[%clk 0:02:33]} 9. dxc4 {[%clk 0:02:55]}  Be6 {[%clk 0:02:34]} 10. b3 {[%clk 0:02:54]}  Nd7 {[%clk 0:02:34]} 11. Ng3 {[%clk 0:02:48]}  Bg5 {[%clk 0:02:33]} 12. Bb2 {[%clk 0:02:34]}  g6 {[%clk 0:02:30]} 13. Rfd1 {[%clk 0:02:32]}  Qf6 {[%clk 0:02:27]} 14. Qxf6 {[%clk 0:02:19]}  Nxf6 {[%clk 0:02:26]} 15. c5 {[%clk 0:02:02]}  Rfd8 {[%clk 0:02:00]} 16. Nb5 {[%clk 0:01:59]}  Ne8 {[%clk 0:02:00]} 17. cxd6 {[%clk 0:01:47]}  cxd6 {[%clk 0:01:59]} 18. c4 {[%clk 0:01:47]}  a6 {[%clk 0:01:48]} 19. Nc3 {[%clk 0:01:47]}  f5 {[%clk 0:01:49]} 20. Rd3 {[%clk 0:01:41]}  Rac8 {[%clk 0:01:42]} 21. Rad1 {[%clk 0:01:38]}  f4 {[%clk 0:01:40]} 22. Nf1 {[%clk 0:01:36]}  Be7 {[%clk 0:01:38]} 23. a4 {[%clk 0:01:33]}  g5 {[%clk 0:01:36]} 24. Nh2 {[%clk 0:01:32]}  h5 {[%clk 0:01:35]} 25. Nd5 {[%clk 0:01:15]}  Bxd5 {[%clk 0:01:35]} 26. Rxd5 {[%clk 0:01:15]}  Nf6 {[%clk 0:01:34]} 27. f3 {[%clk 0:00:35]}  Nxd5 {[%clk 0:01:31]} 28. Rxd5 {[%clk 0:00:36]}  Rc5 {[%clk 0:01:29]} 29. Rd2 {[%clk 0:00:27]}  b5 {[%clk 0:01:29]} 30. Ba3 {[%clk 0:00:28]}  Rc7 {[%clk 0:01:29]} 31. Bb4 {[%clk 0:00:25]}  Rb8 {[%clk 0:01:14]} 32. cxb5 {[%clk 0:00:23]}  axb5 {[%clk 0:01:14]} 33. a5 {[%clk 0:00:23]}  Ra7 {[%clk 0:01:14]} 34. Nf1 {[%clk 0:00:14]}  Kf7 {[%clk 0:01:09]} 35. Rd5 {[%clk 0:00:10]}  Bd8 {[%clk 0:01:00]} 36. Bxd6 {[%clk 0:00:09]}  Rc8 {[%clk 0:01:00]} 37. b4 {[%clk 0:00:09]}  Rd7 {[%clk 0:00:50]} 38. Nd2 {[%clk 0:00:04]}  Rc2 {[%clk 0:00:45]} 39. Nb3 {[%clk 0:00:03]}  Be7 {[%clk 0:00:29]} 40. Bxe7 {[%clk 0:00:02]}  Rxd5 {[%clk 0:00:30]} 41. exd5 {[%clk 0:00:02]}  Kxe7 {[%clk 0:00:31]} 42. a6 {[%clk 0:00:03]}  Rc8 {[%clk 0:00:27]} 43. Na5 {[%clk 0:00:00]}  Kd6 {[%clk 0:00:28]} 0-1